[Event "*** Titled Tuesday 3|2 Blitz"]
[Site "Chess.com"]
[Date "2016.05.03"]
[Round "9"]
[White "bugsbunny444"]
[Black "GianmarcoVaR"]
[Result "0-1"]
[WhiteElo "2354"]
[BlackElo "2334"]
[TimeControl "180+2"]
[EndTime "18:55:58 PDT"]
[Termination "GianmarcoVaR won on time"]

1. Nf3 {[%clk 0:03:01.9]} 1... Nf6 {[%clk 0:02:58.6]} 2. c4 {[%clk 0:03:03.2]}
2... g6 {[%clk 0:02:57.4]} 3. b4 {[%clk 0:03:03.1]} 3... Bg7 {[%clk 0:02:59.3]}
4. Bb2 {[%clk 0:03:04.4]} 4... d6 {[%clk 0:02:57.5]} 5. g3 {[%clk 0:03:05.6]}
5... O-O {[%clk 0:02:59.4]} 6. Bg2 {[%clk 0:03:07]} 6... e5 {[%clk 0:03:01.2]}
7. O-O {[%clk 0:03:07.1]} 7... Nh5 {[%clk 0:02:50.5]} 8. Qc2 {[%clk 0:02:56.4]}
8... f5 {[%clk 0:02:50.9]} 9. d3 {[%clk 0:02:56.1]} 9... f4 {[%clk 0:02:47.8]}
10. Nbd2 {[%clk 0:02:47.3]} 10... g5 {[%clk 0:02:25.6]} 11. Ne4 {[%clk
0:01:56.5]} 11... g4 {[%clk 0:01:53.6]} 12. Nfd2 {[%clk 0:01:41.5]} 12... Nc6
{[%clk 0:01:51.5]} 13. b5 {[%clk 0:01:38.6]} 13... Nd4 {[%clk 0:01:51.4]} 14.
Bxd4 {[%clk 0:01:35.5]} 14... exd4 {[%clk 0:01:42.2]} 15. a4 {[%clk 0:01:27.5]}
15... Be5 {[%clk 0:01:33.9]} 16. a5 {[%clk 0:01:23.5]} 16... Rb8 {[%clk
0:01:27.6]} 17. a6 {[%clk 0:01:11.5]} 17... b6 {[%clk 0:01:26.4]} 18. Nb3 {[%clk
0:00:51.2]} 18... Qe7 {[%clk 0:01:12.5]} 19. Rae1 {[%clk 0:00:42.6]} 19... Qg7
{[%clk 0:00:55.5]} 20. Nc1 {[%clk 0:00:40.6]} 20... Qh6 {[%clk 0:00:41.2]} 21.
Qd2 {[%clk 0:00:28.7]} 21... Qg7 {[%clk 0:00:38.8]} 22. Qd1 {[%clk 0:00:29]}
22... Bd7 {[%clk 0:00:23.9]} 23. Na2 {[%clk 0:00:29.6]} 23... Rf7 {[%clk
0:00:20]} 24. Nb4 {[%clk 0:00:30.2]} 24... Rbf8 {[%clk 0:00:21.9]} 25. Nd2
{[%clk 0:00:13.2]} 25... Qh6 {[%clk 0:00:19.4]} 26. Bd5 {[%clk 0:00:05.4]} 26...
Be6 {[%clk 0:00:15.2]} 27. Bxe6 {[%clk 0:00:04.8]} 27... Qxe6 {[%clk 0:00:16.1]}
28. Nc6 {[%clk 0:00:06]} 28... fxg3 {[%clk 0:00:10.4]} 29. fxg3 {[%clk
0:00:06.1]} 29... Bxg3 {[%clk 0:00:11]} 30. hxg3 {[%clk 0:00:03]} 30... Qe3+
{[%clk 0:00:11]} 0-1

[Event "*** Titled Tuesday 3|2 Blitz"]
[Site "Chess.com"]
[Date "2016.05.03"]
[Round "9"]
[White "vinceyoung15"]
[Black "jposthuma"]
[Result "1/2-1/2"]
[WhiteElo "2206"]
[BlackElo "2143"]
[TimeControl "180+2"]
[EndTime "18:56:11 PDT"]
[Termination "Game drawn - insufficient material"]

1. e4 {[%clk 0:03:01.9]} 1... c6 {[%clk 0:02:59]} 2. d4 {[%clk 0:03:02.7]} 2...
d5 {[%clk 0:03:00.6]} 3. exd5 {[%clk 0:03:03.2]} 3... cxd5 {[%clk 0:03:02.5]} 4.
Bd3 {[%clk 0:03:04.3]} 4... Nc6 {[%clk 0:03:03.4]} 5. c3 {[%clk 0:03:05.7]} 5...
Qc7 {[%clk 0:03:04.2]} 6. Nf3 {[%clk 0:03:00.9]} 6... Nf6 {[%clk 0:03:04.9]} 7.
O-O {[%clk 0:03:01.4]} 7... Bg4 {[%clk 0:03:05.2]} 8. h3 {[%clk 0:03:01.7]} 8...
Bh5 {[%clk 0:03:06]} 9. Bg5 {[%clk 0:03:02]} 9... e6 {[%clk 0:03:03.7]} 10. Nbd2
{[%clk 0:03:02.5]} 10... Be7 {[%clk 0:03:03.6]} 11. Re1 {[%clk 0:03:03]} 11...
O-O {[%clk 0:03:03.8]} 12. Qc2 {[%clk 0:03:03.5]} 12... Bg6 {[%clk 0:03:04.5]}
13. Bxg6 {[%clk 0:03:03.5]} 13... hxg6 {[%clk 0:03:06.4]} 14. Qd3 {[%clk
0:03:04.7]} 14... a6 {[%clk 0:03:04.5]} 15. Ne5 {[%clk 0:03:05.7]} 15... Nxe5
{[%clk 0:02:43.9]} 16. dxe5 {[%clk 0:03:06.6]} 16... Nh5 {[%clk 0:02:26.2]} 17.
Qe3 {[%clk 0:03:00.4]} 17... Bc5 {[%clk 0:01:41.4]} 18. Qd3 {[%clk 0:02:45.6]}
18... Qb6 {[%clk 0:01:25.8]} 19. Re2 {[%clk 0:02:39.4]} 19... Qb5 {[%clk
0:00:54.9]} 20. Qxb5 {[%clk 0:02:18.7]} 20... axb5 {[%clk 0:00:56.8]} 21. g4
{[%clk 0:02:17.4]} 21... Ng3 {[%clk 0:00:57.7]} 22. Ree1 {[%clk 0:02:14.1]}
22... f6 {[%clk 0:00:34.9]} 23. exf6 {[%clk 0:02:11.4]} 23... gxf6 {[%clk
0:00:35.7]} 24. Bh6 {[%clk 0:02:07.6]} 24... Rfe8 {[%clk 0:00:34.4]} 25. Kg2
{[%clk 0:02:08.3]} 25... Ne4 {[%clk 0:00:25.2]} 26. Nxe4 {[%clk 0:02:09]} 26...
dxe4 {[%clk 0:00:27.1]} 27. Rxe4 {[%clk 0:02:09.9]} 27... Rad8 {[%clk
0:00:10.9]} 28. Rae1 {[%clk 0:02:07.2]} 28... Kf7 {[%clk 0:00:11.8]} 29. Be3
{[%clk 0:02:05.1]} 29... Bd6 {[%clk 0:00:09.5]} 30. f4 {[%clk 0:02:04.4]} 30...
f5 {[%clk 0:00:09]} 31. Rd4 {[%clk 0:02:02.4]} 31... e5 {[%clk 0:00:09.9]} 32.
fxe5 {[%clk 0:02:01.8]} 32... Bxe5 {[%clk 0:00:11.7]} 33. Rxd8 {[%clk
0:02:02.3]} 33... Rxd8 {[%clk 0:00:13.6]} 34. Bg5 {[%clk 0:02:02.1]} 34... Bf6
{[%clk 0:00:14.3]} 35. Bxf6 {[%clk 0:02:02.8]} 35... Kxf6 {[%clk 0:00:16.2]} 36.
Re2 {[%clk 0:02:03.9]} 36... fxg4 {[%clk 0:00:15.5]} 37. hxg4 {[%clk 0:02:04.8]}
37... Kg5 {[%clk 0:00:17.1]} 38. Re5+ {[%clk 0:02:00.6]} 38... Kxg4 {[%clk
0:00:17.6]} 39. Rxb5 {[%clk 0:02:02.3]} 39... Rd7 {[%clk 0:00:18.1]} 40. a4
{[%clk 0:02:00]} 40... g5 {[%clk 0:00:17.5]} 41. a5 {[%clk 0:02:01.2]} 41... Kf4
{[%clk 0:00:18.2]} 42. Rb4+ {[%clk 0:02:01.1]} 42... Ke3 {[%clk 0:00:18]} 43.
Rg4 {[%clk 0:01:57.5]} 43... Rd5 {[%clk 0:00:16.5]} 44. b4 {[%clk 0:01:55.6]}
44... Kd3 {[%clk 0:00:16.6]} 45. c4 {[%clk 0:01:55.7]} 45... Re5 {[%clk
0:00:16.1]} 46. c5 {[%clk 0:01:52.2]} 46... Kc3 {[%clk 0:00:13.6]} 47. a6 {[%clk
0:01:45.8]} 47... bxa6 {[%clk 0:00:14.4]} 48. c6 {[%clk 0:01:47.3]} 48... Kb3
{[%clk 0:00:06.1]} 49. c7 {[%clk 0:01:36.7]} 49... Re2+ {[%clk 0:00:06.9]} 50.
Kf3 {[%clk 0:01:36.6]} 50... Rc2 {[%clk 0:00:08.8]} 51. Rxg5 {[%clk 0:01:35.1]}
51... Rxc7 {[%clk 0:00:09.7]} 52. b5 {[%clk 0:01:36.6]} 52... axb5 {[%clk
0:00:09.5]} 53. Rxb5+ {[%clk 0:01:37]} 53... Ka4 {[%clk 0:00:11.4]} 54. Rb1
{[%clk 0:01:35.1]} 54... Rc3+ {[%clk 0:00:12.7]} 55. Ke4 {[%clk 0:01:36.1]}
55... Rb3 {[%clk 0:00:14.6]} 56. Rc1 {[%clk 0:01:36.7]} 56... Rb4+ {[%clk
0:00:15.7]} 57. Kd3 {[%clk 0:01:38]} 57... Kb5 {[%clk 0:00:16.7]} 58. Kc3 {[%clk
0:01:38.4]} 58... Rc4+ {[%clk 0:00:17.7]} 59. Kb2 {[%clk 0:01:40.1]} 59... Rb4+
{[%clk 0:00:19.1]} 60. Kc3 {[%clk 0:01:40.7]} 60... Rc4+ {[%clk 0:00:20.2]} 61.
Kd2 {[%clk 0:01:42]} 61... Rxc1 {[%clk 0:00:21.2]} 62. Kxc1 {[%clk 0:01:43.2]}
1/2-1/2

[Event "*** Titled Tuesday 3|2 Blitz"]
[Site "Chess.com"]
[Date "2016.05.03"]
[Round "9"]
[White "1random"]
[Black "andretta"]
[Result "0-1"]
[WhiteElo "2033"]
[BlackElo "2168"]
[TimeControl "180+2"]
[EndTime "18:57:46 PDT"]
[Termination "andretta won by checkmate"]

1. d4 {[%clk 0:03:01.9]} 1... e6 {[%clk 0:03:00.6]} 2. Bf4 {[%clk 0:03:03.4]}
2... c5 {[%clk 0:02:57.5]} 3. e3 {[%clk 0:03:02.8]} 3... Nf6 {[%clk 0:02:57.6]}
4. Nc3 {[%clk 0:03:01]} 4... cxd4 {[%clk 0:02:52.7]} 5. exd4 {[%clk 0:03:02.9]}
5... d6 {[%clk 0:02:54]} 6. Bd3 {[%clk 0:03:01.9]} 6... Be7 {[%clk 0:02:55.3]}
7. Nf3 {[%clk 0:03:02.6]} 7... O-O {[%clk 0:02:54.3]} 8. O-O {[%clk 0:03:04.2]}
8... b6 {[%clk 0:02:54.2]} 9. Ne4 {[%clk 0:03:05.6]} 9... Bb7 {[%clk 0:02:53.4]}
10. Nxf6+ {[%clk 0:03:06.7]} 10... Bxf6 {[%clk 0:02:55.3]} 11. c3 {[%clk
0:03:06.3]} 11... a6 {[%clk 0:02:54.9]} 12. Qe2 {[%clk 0:03:07.8]} 12... Re8
{[%clk 0:02:49.9]} 13. Be4 {[%clk 0:03:08.4]} 13... Bxe4 {[%clk 0:02:48.6]} 14.
Qxe4 {[%clk 0:03:10.3]} 14... d5 {[%clk 0:02:49.6]} 15. Qe2 {[%clk 0:03:11]}
15... Nc6 {[%clk 0:02:49.5]} 16. Ne5 {[%clk 0:03:11.5]} 16... Nxe5 {[%clk
0:02:49.9]} 17. Bxe5 {[%clk 0:03:13.4]} 17... b5 {[%clk 0:02:50.3]} 18. a3
{[%clk 0:03:08.4]} 18... Bxe5 {[%clk 0:02:49.3]} 19. Qxe5 {[%clk 0:03:07.8]}
19... Qb8 {[%clk 0:02:49.2]} 20. Qg5 {[%clk 0:03:04.1]} 20... a5 {[%clk
0:02:48.1]} 21. Rae1 {[%clk 0:03:03.5]} 21... Qd6 {[%clk 0:02:41.9]} 22. Re3
{[%clk 0:03:04]} 22... b4 {[%clk 0:02:43.3]} 23. axb4 {[%clk 0:03:04.7]} 23...
axb4 {[%clk 0:02:45.2]} 24. Rg3 {[%clk 0:03:05.4]} 24... Qf8 {[%clk 0:02:46.1]}
25. h4 {[%clk 0:02:57.8]} 25... bxc3 {[%clk 0:02:46.3]} 26. bxc3 {[%clk
0:02:59.7]} 26... Kh8 {[%clk 0:02:42.3]} 27. h5 {[%clk 0:03:00.8]} 27... h6
{[%clk 0:02:43.7]} 28. Qf4 {[%clk 0:02:59.1]} 28... Rec8 {[%clk 0:02:43.9]} 29.
Rf3 {[%clk 0:02:59.5]} 29... Ra7 {[%clk 0:02:45.2]} 30. Re1 {[%clk 0:02:58.6]}
30... Kg8 {[%clk 0:02:38.3]} 31. g4 {[%clk 0:02:55.3]} 31... Rac7 {[%clk
0:02:37]} 32. Ree3 {[%clk 0:02:56.2]} 32... Qe7 {[%clk 0:02:32.8]} 33. Kg2
{[%clk 0:02:54.9]} 33... Rc6 {[%clk 0:02:19.8]} 34. Rd3 {[%clk 0:02:52.9]} 34...
Qc7 {[%clk 0:02:18.9]} 35. Qd2 {[%clk 0:02:51.7]} 35... Qd8 {[%clk 0:02:08.9]}
36. Rg3 {[%clk 0:02:51.7]} 36... f6 {[%clk 0:01:58.2]} 37. f4 {[%clk 0:02:51.8]}
37... Qe8 {[%clk 0:01:49]} 38. Qe2 {[%clk 0:02:48]} 38... R8c7 {[%clk
0:01:33.3]} 39. g5 {[%clk 0:02:30]} 39... fxg5 {[%clk 0:01:35.2]} 40. fxg5
{[%clk 0:02:29.8]} 40... hxg5 {[%clk 0:01:37.1]} 41. Rxg5 {[%clk 0:02:27.5]}
41... Qf8 {[%clk 0:01:23.6]} 42. Rf3 {[%clk 0:02:16.6]} 42... Rf7 {[%clk
0:01:22.4]} 43. Rfg3 {[%clk 0:02:12.3]} 43... Kh8 {[%clk 0:01:07.6]} 44. Qe5
{[%clk 0:01:32.6]} 44... Qd6 {[%clk 0:01:00]} 45. Qe3 {[%clk 0:01:15.9]} 45...
Ra6 {[%clk 0:00:50.3]} 46. h6 {[%clk 0:01:03.2]} 46... Ra2+ {[%clk 0:00:49.4]}
47. Kh3 {[%clk 0:01:03.3]} 47... gxh6 {[%clk 0:00:19.8]} 48. Rg8+ {[%clk
0:01:03.4]} 48... Kh7 {[%clk 0:00:20.7]} 49. Rh8+ {[%clk 0:01:04.8]} 49... Kxh8
{[%clk 0:00:21]} 50. Qxh6+ {[%clk 0:01:06.7]} 50... Rh7 {[%clk 0:00:21.3]} 51.
Qxh7+ {[%clk 0:00:34.3]} 51... Kxh7 {[%clk 0:00:23.2]} 52. Kg4 {[%clk 0:00:35]}
52... Qxg3+ {[%clk 0:00:21.5]} 53. Kxg3 {[%clk 0:00:36.9]} 53... Rc2 {[%clk
0:00:22.9]} 54. Kf4 {[%clk 0:00:38.8]} 54... Rxc3 {[%clk 0:00:24]} 55. Ke5
{[%clk 0:00:40]} 55... Re3+ {[%clk 0:00:25.1]} 56. Kd6 {[%clk 0:00:40.9]} 56...
Kg6 {[%clk 0:00:24.9]} 57. Kc5 {[%clk 0:00:41.5]} 57... Kf5 {[%clk 0:00:25.4]}
58. Kd6 {[%clk 0:00:41.6]} 58... Ra3 {[%clk 0:00:21.6]} 59. Kc5 {[%clk
0:00:42.3]} 59... Ra8 {[%clk 0:00:18]} 60. Kd6 {[%clk 0:00:39.5]} 60... Ra6+
{[%clk 0:00:19]} 61. Kc5 {[%clk 0:00:41.3]} 61... Ke4 {[%clk 0:00:19.4]} 62. Kb5
{[%clk 0:00:42.9]} 62... Kxd4 {[%clk 0:00:20.7]} 63. Kxa6 {[%clk 0:00:44.3]}
63... e5 {[%clk 0:00:22.6]} 64. Kb5 {[%clk 0:00:46.1]} 64... e4 {[%clk
0:00:24.5]} 65. Kb6 {[%clk 0:00:48]} 65... e3 {[%clk 0:00:26.3]} 66. Kb7 {[%clk
0:00:49.9]} 66... e2 {[%clk 0:00:28.2]} 67. Kb8 {[%clk 0:00:51.8]} 67... e1=Q
{[%clk 0:00:30.1]} 68. Kc7 {[%clk 0:00:53.7]} 68... Qc3+ {[%clk 0:00:30.9]} 69.
Kd7 {[%clk 0:00:55.6]} 69... Ke4 {[%clk 0:00:31.9]} 70. Kd6 {[%clk 0:00:57.5]}
70... d4 {[%clk 0:00:33.8]} 71. Ke6 {[%clk 0:00:59.3]} 71... d3 {[%clk
0:00:35.7]} 72. Ke7 {[%clk 0:01:01.2]} 72... d2 {[%clk 0:00:37.6]} 73. Ke6
{[%clk 0:01:03.1]} 73... d1=Q {[%clk 0:00:38.5]} 74. Ke7 {[%clk 0:01:05]} 74...
Qd5 {[%clk 0:00:39.1]} 75. Kf8 {[%clk 0:01:05.3]} 75... Qc7 {[%clk 0:00:36.1]}
76. Ke8 {[%clk 0:01:06.1]} 76... Qg8# {[%clk 0:00:36.2]} 0-1

[Event "*** Titled Tuesday 3|2 Blitz"]
[Site "Chess.com"]
[Date "2016.05.03"]
[Round "9"]
[White "E-Shaposhnikov"]
[Black "Hikaru"]
[Result "1/2-1/2"]
[WhiteElo "2519"]
[BlackElo "2819"]
[TimeControl "180+2"]
[EndTime "18:58:53 PDT"]
[Termination "Game drawn by repetition"]

1. e4 {[%clk 0:03:01.9]} 1... e6 {[%clk 0:02:58.5]} 2. d4 {[%clk 0:03:02.2]}
2... d5 {[%clk 0:03:00.4]} 3. Nc3 {[%clk 0:03:04.1]} 3... Nf6 {[%clk 0:03:01.3]}
4. e5 {[%clk 0:03:04.9]} 4... Nfd7 {[%clk 0:03:02.2]} 5. f4 {[%clk 0:03:06.6]}
5... c5 {[%clk 0:03:04.1]} 6. Nf3 {[%clk 0:03:08.2]} 6... Nc6 {[%clk 0:03:05.6]}
7. Ne2 {[%clk 0:03:09.8]} 7... f6 {[%clk 0:03:01.6]} 8. c3 {[%clk 0:03:07.9]}
8... Qb6 {[%clk 0:03:00.3]} 9. a3 {[%clk 0:03:06]} 9... cxd4 {[%clk 0:02:57.1]}
10. cxd4 {[%clk 0:03:06.2]} 10... Be7 {[%clk 0:02:58.6]} 11. g3 {[%clk
0:03:02.8]} 11... O-O {[%clk 0:02:58.7]} 12. Bh3 {[%clk 0:02:57.7]} 12... fxe5
{[%clk 0:02:58.6]} 13. Bxe6+ {[%clk 0:02:18.5]} 13... Kh8 {[%clk 0:02:42.9]} 14.
O-O {[%clk 0:01:47.9]} 14... e4 {[%clk 0:02:09.1]} 15. Ng5 {[%clk 0:01:48.5]}
15... Nf6 {[%clk 0:02:10]} 16. Kg2 {[%clk 0:01:08.8]} 16... Nd8 {[%clk
0:02:00.6]} 17. Bxc8 {[%clk 0:01:07.6]} 17... Rxc8 {[%clk 0:02:02.5]} 18. Nc3
{[%clk 0:01:09]} 18... h6 {[%clk 0:02:02.7]} 19. Nh3 {[%clk 0:01:09.6]} 19...
Ne6 {[%clk 0:02:02.9]} 20. Ne2 {[%clk 0:01:03.6]} 20... Rfe8 {[%clk 0:01:41.8]}
21. f5 {[%clk 0:01:02.8]} 21... Nf8 {[%clk 0:01:43.2]} 22. Nhf4 {[%clk
0:00:58.2]} 22... Bd6 {[%clk 0:01:44.5]} 23. b4 {[%clk 0:00:50.3]} 23... e3
{[%clk 0:01:41.6]} 24. Qd3 {[%clk 0:00:47.5]} 24... Qc6 {[%clk 0:01:12.1]} 25.
Bxe3 {[%clk 0:00:40.3]} 25... Bxf4 {[%clk 0:01:12.1]} 26. Nxf4 {[%clk
0:00:36.9]} 26... Qc2+ {[%clk 0:01:13.2]} 27. Bf2 {[%clk 0:00:38.1]} 27... Ng4
{[%clk 0:01:11.4]} 28. Kg1 {[%clk 0:00:24.8]} 28... Nh7 {[%clk 0:01:11.7]} 29.
Ng6+ {[%clk 0:00:23]} 29... Kg8 {[%clk 0:01:12.1]} 30. Qf3 {[%clk 0:00:20.2]}
30... Nhf6 {[%clk 0:01:12.5]} 31. Rae1 {[%clk 0:00:19.6]} 31... Re4 {[%clk
0:01:08.8]} 32. Ne7+ {[%clk 0:00:19.4]} 32... Rxe7 {[%clk 0:01:09.5]} 33. Rxe7
{[%clk 0:00:21.3]} 33... Rc3 {[%clk 0:01:09.7]} 34. Qe2 {[%clk 0:00:20.5]} 34...
Qxe2 {[%clk 0:01:10.8]} 35. Rxe2 {[%clk 0:00:22.1]} 35... Ne4 {[%clk 0:01:12.7]}
36. Be1 {[%clk 0:00:19.4]} 36... Rxa3 {[%clk 0:01:13.8]} 37. Rc2 {[%clk
0:00:19.8]} 37... b5 {[%clk 0:01:07.7]} 38. Rc8+ {[%clk 0:00:20.1]} 38... Kh7
{[%clk 0:01:08.7]} 39. Rc7 {[%clk 0:00:20.8]} 39... Ngf6 {[%clk 0:01:04.6]} 40.
Bf2 {[%clk 0:00:18]} 40... a6 {[%clk 0:01:03.1]} 41. Rfc1 {[%clk 0:00:17.7]}
41... Rf3 {[%clk 0:01:00]} 42. Be1 {[%clk 0:00:17.5]} 42... Rxf5 {[%clk
0:00:59.8]} 43. Ra7 {[%clk 0:00:19.1]} 43... Ng5 {[%clk 0:00:58.6]} 44. Rxa6
{[%clk 0:00:16.3]} 44... Ng4 {[%clk 0:00:53.3]} 45. h4 {[%clk 0:00:14.3]} 45...
Nf3+ {[%clk 0:00:52.8]} 46. Kg2 {[%clk 0:00:15.5]} 46... Ne3+ {[%clk 0:00:54.1]}
47. Kh3 {[%clk 0:00:16.7]} 47... Ng1+ {[%clk 0:00:47.2]} 48. Kh2 {[%clk
0:00:16.4]} 48... Rf1 {[%clk 0:00:49.1]} 49. g4 {[%clk 0:00:12.8]} 49... Ne2
{[%clk 0:00:43.2]} 50. Bd2 {[%clk 0:00:08.8]} 50... Nxg4+ {[%clk 0:00:20]} 51.
Kg2 {[%clk 0:00:07.5]} 51... Rxc1 {[%clk 0:00:21.6]} 52. Bxc1 {[%clk 0:00:08.6]}
52... Nxc1 {[%clk 0:00:23.5]} 53. Kf3 {[%clk 0:00:09.4]} 53... Nf6 {[%clk
0:00:23.5]} 54. Rb6 {[%clk 0:00:10.2]} 54... Nb3 {[%clk 0:00:25]} 55. Ke3 {[%clk
0:00:10.4]} 55... Ng4+ {[%clk 0:00:23.4]} 56. Kd3 {[%clk 0:00:09.4]} 56... Nf2+
{[%clk 0:00:24.7]} 57. Kc3 {[%clk 0:00:10.6]} 57... Nc1 {[%clk 0:00:26.4]} 58.
Rxb5 {[%clk 0:00:11.8]} 58... Ne2+ {[%clk 0:00:28]} 59. Kd2 {[%clk 0:00:12.3]}
59... Nxd4 {[%clk 0:00:28.4]} 60. Rxd5 {[%clk 0:00:13.4]} 60... Ne6 {[%clk
0:00:27.9]} 61. Re5 {[%clk 0:00:10.9]} 61... Nd4 {[%clk 0:00:27.1]} 62. Kc3
{[%clk 0:00:10.8]} 62... Nc6 {[%clk 0:00:26.6]} 63. Re6 {[%clk 0:00:11.2]} 63...
Na7 {[%clk 0:00:23.2]} 64. Kc4 {[%clk 0:00:10.2]} 64... Ng4 {[%clk 0:00:22.2]}
65. Ra6 {[%clk 0:00:11.8]} 65... Nc8 {[%clk 0:00:23.1]} 66. b5 {[%clk
0:00:13.3]} 66... Ne5+ {[%clk 0:00:23.9]} 67. Kd5 {[%clk 0:00:14.4]} 67... Nd7
{[%clk 0:00:25.5]} 68. Kc6 {[%clk 0:00:15.4]} 68... Nb8+ {[%clk 0:00:17.6]} 69.
Kb7 {[%clk 0:00:15.9]} 69... Nxa6 {[%clk 0:00:17.5]} 70. bxa6 {[%clk 0:00:17.8]}
70... Nd6+ {[%clk 0:00:19.1]} 71. Kc6 {[%clk 0:00:17.3]} 71... Nc8 {[%clk
0:00:20.7]} 72. Kb7 {[%clk 0:00:18.5]} 72... Nd6+ {[%clk 0:00:16.6]} 73. Kc6
{[%clk 0:00:19.6]} 73... Nc8 {[%clk 0:00:18]} 74. Kb7 {[%clk 0:00:20.6]} 74...
Nd6+ {[%clk 0:00:17.2]} 75. Kc6 {[%clk 0:00:21.6]} 75... Nc8 {[%clk 0:00:19.1]}
76. Kb7 {[%clk 0:00:22.4]} 76... Nd6+ {[%clk 0:00:21]} 77. Kc6 {[%clk
0:00:23.4]} 77... Nc8 {[%clk 0:00:22.7]} 78. Kb7 {[%clk 0:00:24.6]} 1/2-1/2